[Event "*** SCC Grand Prix: Titled Tuesday Blitz"]
[Site "Chess.com"]
[Date "2020.07.07"]
[Round "7"]
[White "olksuna"]
[Black "ichangedmyname_yup"]
[Result "1-0"]
[WhiteElo "2623"]
[BlackElo "2407"]
[TimeControl "180+1"]
[EndTime "11:20:02 PDT"]
[Termination "olksuna won by resignation"]

1. e4 {[%clk 0:03:00.9]} 1... c5 {[%clk 0:02:59.3]} 2. Nf3 {[%clk 0:03:00.6]}
2... e6 {[%clk 0:02:59.9]} 3. d3 {[%clk 0:02:58.7]} 3... b6 {[%clk 0:03:00]} 4.
g3 {[%clk 0:02:58.3]} 4... Bb7 {[%clk 0:03:00.5]} 5. Bg2 {[%clk 0:02:59]} 5...
d6 {[%clk 0:03:00.9]} 6. O-O {[%clk 0:02:59.5]} 6... Nd7 {[%clk 0:03:01.4]} 7.
c4 {[%clk 0:02:56.7]} 7... a6 {[%clk 0:03:00.8]} 8. Nc3 {[%clk 0:02:56.9]} 8...
Ngf6 {[%clk 0:03:01]} 9. Re1 {[%clk 0:02:55.6]} 9... Qc7 {[%clk 0:03:01.3]} 10.
b3 {[%clk 0:02:55.2]} 10... Be7 {[%clk 0:03:01.5]} 11. d4 {[%clk 0:02:55.5]}
11... cxd4 {[%clk 0:03:01.1]} 12. Nxd4 {[%clk 0:02:56.4]} 12... O-O {[%clk
0:03:01]} 13. Bb2 {[%clk 0:02:56.8]} 13... Rfe8 {[%clk 0:02:57.8]} 14. Rc1
{[%clk 0:02:56.6]} 14... Bf8 {[%clk 0:02:57.4]} 15. h3 {[%clk 0:02:49.4]} 15...
Rad8 {[%clk 0:02:57.3]} 16. Kh2 {[%clk 0:02:47.9]} 16... Qb8 {[%clk 0:02:57.7]}
17. Qd2 {[%clk 0:02:43.5]} 17... g6 {[%clk 0:02:57.7]} 18. Rcd1 {[%clk
0:02:42.4]} 18... Bg7 {[%clk 0:02:57.9]} 19. Ba3 {[%clk 0:02:34.6]} 19... Nc5
{[%clk 0:02:53.1]} 20. Qc2 {[%clk 0:02:34.6]} 20... Ba8 {[%clk 0:02:47.9]} 21.
Bb2 {[%clk 0:02:32]} 21... Nh5 {[%clk 0:02:35.2]} 22. Nde2 {[%clk 0:02:26.7]}
22... b5 {[%clk 0:02:27.2]} 23. cxb5 {[%clk 0:02:24.4]} 23... axb5 {[%clk
0:02:27.6]} 24. b4 {[%clk 0:02:25.1]} 24... Nd7 {[%clk 0:02:17.2]} 25. a3 {[%clk
0:02:18.8]} 25... Ne5 {[%clk 0:02:13.4]} 26. Qb3 {[%clk 0:02:05.5]} 26... Nc4
{[%clk 0:02:12.5]} 27. Bc1 {[%clk 0:02:06.1]} 27... Qb6 {[%clk 0:02:04.7]} 28.
Kg1 {[%clk 0:02:02.4]} 28... Bc6 {[%clk 0:01:38.9]} 29. a4 {[%clk 0:01:58.9]}
29... Ne5 {[%clk 0:01:22.6]} 30. Nxb5 {[%clk 0:01:49.9]} 30... Bxb5 {[%clk
0:01:22.2]} 31. axb5 {[%clk 0:01:50.8]} 31... Qxb5 {[%clk 0:01:21.6]} 32. Nd4
{[%clk 0:01:50.9]} 32... Qb8 {[%clk 0:01:16.1]} 33. b5 {[%clk 0:01:46]} 33...
Rc8 {[%clk 0:01:11.2]} 34. Bf1 {[%clk 0:01:14.2]} 34... Nd7 {[%clk 0:01:04.4]}
35. Ba3 {[%clk 0:01:06.8]} 35... Nc5 {[%clk 0:01:03.1]} 36. Qb1 {[%clk
0:01:06.9]} 36... Qa7 {[%clk 0:00:53.4]} 37. Bb4 {[%clk 0:00:53.6]} 37... Nxg3
{[%clk 0:00:46.7]} 38. fxg3 {[%clk 0:00:29.3]} 38... e5 {[%clk 0:00:45.7]} 39.
Nc6 {[%clk 0:00:22.6]} 39... Rxc6 {[%clk 0:00:44.9]} 40. bxc6 {[%clk 0:00:23.5]}
40... Nxe4+ {[%clk 0:00:44]} 41. Kh1 {[%clk 0:00:18.1]} 41... Nxg3+ {[%clk
0:00:32.1]} 42. Kg2 {[%clk 0:00:18.1]} 42... Nf5 {[%clk 0:00:29.5]} 43. Bxd6
{[%clk 0:00:17.8]} 43... Ne3+ {[%clk 0:00:22.6]} 44. Rxe3 {[%clk 0:00:18.1]}
44... Qxe3 {[%clk 0:00:22.6]} 45. Qd3 {[%clk 0:00:17]} 45... Qg5+ {[%clk
0:00:20.8]} 46. Qg3 {[%clk 0:00:16.9]} 46... Qd8 {[%clk 0:00:18.5]} 47. c7
{[%clk 0:00:16.7]} 47... Qc8 {[%clk 0:00:18.5]} 48. Qd3 {[%clk 0:00:16.4]} 48...
e4 {[%clk 0:00:17.5]} 49. Qa6 {[%clk 0:00:15.1]} 49... Qe6 {[%clk 0:00:14.7]}
50. Bg3 {[%clk 0:00:11.1]} 50... e3 {[%clk 0:00:05.8]} 51. Qxe6 {[%clk
0:00:10.2]} 51... fxe6 {[%clk 0:00:04]} 52. Rd8 {[%clk 0:00:10.1]} 52... Kf7
{[%clk 0:00:04.2]} 53. Rxe8 {[%clk 0:00:10.2]} 53... Kxe8 {[%clk 0:00:04.5]} 54.
c8=Q+ {[%clk 0:00:10.7]} 54... Kf7 {[%clk 0:00:04.1]} 55. Bc4 {[%clk 0:00:10.8]}
1-0

[Event "*** SCC Grand Prix: Titled Tuesday Blitz"]
[Site "Chess.com"]
[Date "2020.07.07"]
[Round "7"]
[White "SzMM19"]
[Black "MrChampion_Coach"]
[Result "1-0"]
[WhiteElo "2567"]
[BlackElo "2410"]
[TimeControl "180+1"]
[EndTime "11:20:03 PDT"]
[Termination "SzMM19 won by resignation"]

1. e4 {[%clk 0:03:00.9]} 1... c5 {[%clk 0:02:58.9]} 2. Nf3 {[%clk 0:03:00.8]}
2... d6 {[%clk 0:02:58.6]} 3. Bb5+ {[%clk 0:03:00.2]} 3... Nd7 {[%clk
0:02:57.4]} 4. O-O {[%clk 0:02:59.9]} 4... Nf6 {[%clk 0:02:55.5]} 5. Re1 {[%clk
0:02:59.5]} 5... a6 {[%clk 0:02:53.5]} 6. Bf1 {[%clk 0:02:58.6]} 6... b5 {[%clk
0:02:48.1]} 7. c3 {[%clk 0:02:58.3]} 7... c4 {[%clk 0:02:46.7]} 8. a4 {[%clk
0:02:57.6]} 8... Bb7 {[%clk 0:02:45.6]} 9. d3 {[%clk 0:02:56.9]} 9... cxd3
{[%clk 0:02:41.5]} 10. Bxd3 {[%clk 0:02:57.8]} 10... bxa4 {[%clk 0:02:41.5]} 11.
Bg5 {[%clk 0:02:52.5]} 11... e6 {[%clk 0:02:31.7]} 12. Bc2 {[%clk 0:02:41.8]}
12... Be7 {[%clk 0:02:29.4]} 13. Nbd2 {[%clk 0:02:36.8]} 13... O-O {[%clk
0:02:29]} 14. Bxa4 {[%clk 0:02:37]} 14... Nc5 {[%clk 0:02:28]} 15. Bc2 {[%clk
0:02:37]} 15... d5 {[%clk 0:02:25.5]} 16. e5 {[%clk 0:02:33]} 16... Nfe4 {[%clk
0:02:24]} 17. Bxe7 {[%clk 0:02:33.9]} 17... Qxe7 {[%clk 0:02:24.3]} 18. Nxe4
{[%clk 0:02:09.2]} 18... dxe4 {[%clk 0:02:14.8]} 19. Nd4 {[%clk 0:02:07.1]}
19... Qg5 {[%clk 0:02:11.9]} 20. b4 {[%clk 0:01:47.4]} 20... Nd3 {[%clk
0:02:09.1]} 21. Bxd3 {[%clk 0:01:46.6]} 21... exd3 {[%clk 0:02:10]} 22. g3
{[%clk 0:01:44]} 22... d2 {[%clk 0:02:03]} 23. Re2 {[%clk 0:01:36.5]} 23... Rac8
{[%clk 0:01:35.1]} 24. Ra3 {[%clk 0:01:32]} 24... Qd8 {[%clk 0:01:16]} 25. Rxd2
{[%clk 0:01:21]} 25... Qd5 {[%clk 0:01:09.5]} 26. f3 {[%clk 0:00:58.8]} 26...
Qxe5 {[%clk 0:01:09.4]} 27. Kf2 {[%clk 0:00:59]} 27... Qh5 {[%clk 0:01:05.4]}
28. Kg1 {[%clk 0:00:54]} 28... e5 {[%clk 0:01:05.6]} 29. g4 {[%clk 0:00:48.8]}
29... Qh3 {[%clk 0:00:55.4]} 30. Nf5 {[%clk 0:00:45.8]} 30... Kh8 {[%clk
0:00:53]} 31. c4 {[%clk 0:00:33.2]} 31... Rxc4 {[%clk 0:00:38.7]} 32. Nd6 {[%clk
0:00:33.3]} 32... Bxf3 {[%clk 0:00:20.4]} 33. Rxf3 {[%clk 0:00:23.4]} 33...
Qxg4+ {[%clk 0:00:15]} 34. Rg3 {[%clk 0:00:20.4]} 34... Qf4 {[%clk 0:00:10.7]}
35. Nxc4 {[%clk 0:00:16.6]} 35... Qxc4 {[%clk 0:00:08.8]} 36. Rd8 {[%clk
0:00:16.7]} 36... Qxb4 {[%clk 0:00:08.9]} 37. Rxf8+ {[%clk 0:00:13.6]} 37...
Qxf8 {[%clk 0:00:09.8]} 38. Rd3 {[%clk 0:00:11.9]} 38... Qc5+ {[%clk 0:00:08.7]}
39. Kf1 {[%clk 0:00:11.8]} 39... g6 {[%clk 0:00:09.2]} 40. Rd5 {[%clk
0:00:07.9]} 40... Qc4+ {[%clk 0:00:09.3]} 41. Qd3 {[%clk 0:00:08]} 41... Qf4+
{[%clk 0:00:09.4]} 42. Kg1 {[%clk 0:00:08.3]} 42... Qxh2+ {[%clk 0:00:09.7]} 43.
Kxh2 {[%clk 0:00:08.1]} 43... Kg7 {[%clk 0:00:08.9]} 44. Rd7 {[%clk 0:00:08]}
44... e4 {[%clk 0:00:05.3]} 45. Qd5 {[%clk 0:00:08.9]} 45... Kh6 {[%clk
0:00:05.3]} 46. Qxf7 {[%clk 0:00:07.6]} 46... Kg5 {[%clk 0:00:05.2]} 47. Kg3
{[%clk 0:00:08]} 47... h5 {[%clk 0:00:04.7]} 48. Rd5+ {[%clk 0:00:06.1]} 48...
Kh6 {[%clk 0:00:04]} 49. Rd6 {[%clk 0:00:06.6]} 49... h4+ {[%clk 0:00:04.3]} 50.
Kg4 {[%clk 0:00:06.4]} 1-0

[Event "*** SCC Grand Prix: Titled Tuesday Blitz"]
[Site "Chess.com"]
[Date "2020.07.07"]
[Round "7"]
[White "Jbd735"]
[Black "YellowJacek"]
[Result "1-0"]
[WhiteElo "2432"]
[BlackElo "2254"]
[TimeControl "180+1"]
[EndTime "11:20:03 PDT"]
[Termination "Jbd735 won by resignation"]

1. e4 {[%clk 0:03:00.9]} 1... c5 {[%clk 0:02:59.3]} 2. Nf3 {[%clk 0:03:01.1]}
2... d6 {[%clk 0:02:58.7]} 3. d4 {[%clk 0:03:01.8]} 3... cxd4 {[%clk 0:02:58.4]}
4. Nxd4 {[%clk 0:03:02.7]} 4... Nf6 {[%clk 0:02:58.4]} 5. Nc3 {[%clk 0:03:03.2]}
5... g6 {[%clk 0:02:58.5]} 6. g3 {[%clk 0:03:00.7]} 6... Nc6 {[%clk 0:02:57]} 7.
Bg2 {[%clk 0:02:59.9]} 7... Nxd4 {[%clk 0:02:55.5]} 8. Qxd4 {[%clk 0:02:59.4]}
8... Bg7 {[%clk 0:02:56]} 9. O-O {[%clk 0:02:57.1]} 9... O-O {[%clk 0:02:55]}
10. Qd3 {[%clk 0:02:52.2]} 10... Rb8 {[%clk 0:02:53.9]} 11. a4 {[%clk
0:02:50.3]} 11... Nd7 {[%clk 0:02:47.3]} 12. f4 {[%clk 0:02:46.6]} 12... Nc5
{[%clk 0:02:44.5]} 13. Qe3 {[%clk 0:02:36]} 13... a6 {[%clk 0:02:39.1]} 14. Kh1
{[%clk 0:02:29.8]} 14... b5 {[%clk 0:02:37]} 15. axb5 {[%clk 0:02:29.4]} 15...
axb5 {[%clk 0:02:37.4]} 16. Ra7 {[%clk 0:02:19.4]} 16... b4 {[%clk 0:02:34.5]}
17. Nd5 {[%clk 0:02:17.6]} 17... Rb7 {[%clk 0:02:24.5]} 18. Rxb7 {[%clk
0:02:12.7]} 18... Bxb7 {[%clk 0:02:24]} 19. Nxb4 {[%clk 0:02:12]} 19... Qa8
{[%clk 0:02:08.1]} 20. Re1 {[%clk 0:01:59.8]} 20... e6 {[%clk 0:02:01.5]} 21.
Nd3 {[%clk 0:01:54.6]} 21... Na4 {[%clk 0:01:56.1]} 22. c3 {[%clk 0:01:52.5]}
22... d5 {[%clk 0:01:52.9]} 23. exd5 {[%clk 0:01:19.9]} 23... Bxd5 {[%clk
0:01:51.9]} 24. Bxd5 {[%clk 0:01:19.8]} 24... Qxd5+ {[%clk 0:01:51.5]} 25. Qe4
{[%clk 0:01:20]} 25... Qb3 {[%clk 0:01:45.3]} 26. h4 {[%clk 0:01:00.7]} 26...
Rd8 {[%clk 0:01:41.3]} 27. Qe2 {[%clk 0:00:56.2]} 27... h5 {[%clk 0:01:39.2]}
28. Ne5 {[%clk 0:00:54.8]} 28... Nc5 {[%clk 0:01:31.1]} 29. Kh2 {[%clk
0:00:49.4]} 29... Bxe5 {[%clk 0:01:21]} 30. fxe5 {[%clk 0:00:47.6]} 30... Qd5
{[%clk 0:01:19]} 31. Bg5 {[%clk 0:00:42.7]} 31... Nd3 {[%clk 0:01:15]} 32. Bxd8
{[%clk 0:00:32.6]} 32... Nxe1 {[%clk 0:01:13.9]} 33. Qxe1 {[%clk 0:00:30.1]}
33... Qxd8 {[%clk 0:01:14.1]} 34. b4 {[%clk 0:00:25.4]} 34... Qd3 {[%clk
0:01:13.4]} 35. Kg2 {[%clk 0:00:20.7]} 35... Kg7 {[%clk 0:01:09.9]} 36. Kf2
{[%clk 0:00:20.5]} 36... Qf5+ {[%clk 0:01:08.3]} 37. Kg2 {[%clk 0:00:19]} 37...
Qd3 {[%clk 0:01:08.2]} 38. Kh2 {[%clk 0:00:15.1]} 38... Kg8 {[%clk 0:01:06]} 39.
Kh3 {[%clk 0:00:14.4]} 39... Qf5+ {[%clk 0:01:05.4]} 40. Kh2 {[%clk 0:00:13]}
40... Qf3 {[%clk 0:01:02.7]} 41. b5 {[%clk 0:00:10.5]} 41... Qd5 {[%clk
0:01:00.2]} 42. Qe2 {[%clk 0:00:09.4]} 42... Qc5 {[%clk 0:00:58.6]} 43. c4
{[%clk 0:00:09.5]} 43... Qb4 {[%clk 0:00:57.6]} 44. Kg2 {[%clk 0:00:08.3]} 44...
Kg7 {[%clk 0:00:56.5]} 45. Kf3 {[%clk 0:00:08.2]} 45... Qc5 {[%clk 0:00:55.8]}
46. Ke4 {[%clk 0:00:07.3]} 46... Qb4 {[%clk 0:00:54.6]} 47. Kd4 {[%clk
0:00:05.8]} 47... Qa3 {[%clk 0:00:52.2]} 48. Qd3 {[%clk 0:00:04.4]} 48... Qb4
{[%clk 0:00:50.9]} 49. Qc3 {[%clk 0:00:03.5]} 49... Qb1 {[%clk 0:00:49.3]} 50.
Qa5 {[%clk 0:00:01.7]} 50... Qh1 {[%clk 0:00:48]} 51. Kc5 {[%clk 0:00:01.7]}
51... Qg1+ {[%clk 0:00:47.3]} 52. Kd6 {[%clk 0:00:01.5]} 52... Qxg3 {[%clk
0:00:47]} 53. b6 {[%clk 0:00:01.8]} 53... Qd3+ {[%clk 0:00:46.5]} 54. Kc5 {[%clk
0:00:02]} 54... Qe3+ {[%clk 0:00:45.8]} 55. Kc6 {[%clk 0:00:02.2]} 55... Qe4+
{[%clk 0:00:45.6]} 56. Kb5 {[%clk 0:00:02.4]} 56... Qb1+ {[%clk 0:00:45.2]} 57.
Qb4 {[%clk 0:00:02.8]} 57... Qh1 {[%clk 0:00:44.6]} 58. c5 {[%clk 0:00:02.3]}
58... Qd5 {[%clk 0:00:43.4]} 59. Qc4 {[%clk 0:00:02.2]} 59... Qxe5 {[%clk
0:00:41.5]} 60. b7 {[%clk 0:00:01.9]} 60... Qc7 {[%clk 0:00:41.1]} 61. c6 {[%clk
0:00:02.2]} 61... f6 {[%clk 0:00:41.3]} 62. Qd4 {[%clk 0:00:02.3]} 62... e5
{[%clk 0:00:41.5]} 63. Qd7+ {[%clk 0:00:02.6]} 63... Kh6 {[%clk 0:00:41.9]} 64.
Qxc7 {[%clk 0:00:02.7]} 1-0

[Event "*** SCC Grand Prix: Titled Tuesday Blitz"]
[Site "Chess.com"]
[Date "2020.07.07"]
[Round "7"]
[White "seorobert1971"]
[Black "S-Fazulyanov"]
[Result "1-0"]
[WhiteElo "2703"]
[BlackElo "2545"]
[TimeControl "180+1"]
[EndTime "11:20:05 PDT"]
[Termination "seorobert1971 won by resignation"]

1. c4 {[%clk 0:03:00.9]} 1... e5 {[%clk 0:02:59.6]} 2. Nc3 {[%clk 0:03:00.8]}
2... Nc6 {[%clk 0:03:00]} 3. Nf3 {[%clk 0:03:01]} 3... d6 {[%clk 0:03:00.4]} 4.
g3 {[%clk 0:02:58.5]} 4... g6 {[%clk 0:03:00.7]} 5. Bg2 {[%clk 0:02:58.5]} 5...
Bg7 {[%clk 0:03:01.2]} 6. O-O {[%clk 0:02:58.6]} 6... Nge7 {[%clk 0:03:01.7]} 7.
d3 {[%clk 0:02:57.1]} 7... O-O {[%clk 0:03:01.8]} 8. Rb1 {[%clk 0:02:57.3]} 8...
a5 {[%clk 0:03:01.5]} 9. a3 {[%clk 0:02:57]} 9... h6 {[%clk 0:03:01.3]} 10. b4
{[%clk 0:02:56.1]} 10... axb4 {[%clk 0:03:02.2]} 11. axb4 {[%clk 0:02:57]} 11...
f5 {[%clk 0:03:01.9]} 12. Bd2 {[%clk 0:02:48]} 12... Be6 {[%clk 0:03:01.4]} 13.
Ne1 {[%clk 0:02:37.3]} 13... g5 {[%clk 0:02:57.5]} 14. b5 {[%clk 0:02:36.8]}
14... Na5 {[%clk 0:02:57.2]} 15. Nc2 {[%clk 0:02:34.4]} 15... c6 {[%clk
0:02:50.1]} 16. Nb4 {[%clk 0:02:33.7]} 16... f4 {[%clk 0:02:09.8]} 17. Ra1
{[%clk 0:02:29.4]} 17... Qd7 {[%clk 0:01:58.5]} 18. Ne4 {[%clk 0:02:13.4]} 18...
cxb5 {[%clk 0:01:49.7]} 19. cxb5 {[%clk 0:02:13.2]} 19... Nb3 {[%clk 0:01:50.3]}
20. Rxa8 {[%clk 0:02:11.2]} 20... Rxa8 {[%clk 0:01:51.2]} 21. Bc3 {[%clk
0:02:06.4]} 21... Nf5 {[%clk 0:01:35.6]} 22. Bh3 {[%clk 0:02:05.5]} 22... Nfd4
{[%clk 0:01:24.5]} 23. Bxe6+ {[%clk 0:02:02.6]} 23... Qxe6 {[%clk 0:01:25.4]}
24. Bxd4 {[%clk 0:01:52.6]} 24... Nxd4 {[%clk 0:01:24.4]} 25. Nc2 {[%clk
0:01:45.6]} 25... d5 {[%clk 0:01:14]} 26. Nxd4 {[%clk 0:01:42.8]} 26... exd4
{[%clk 0:01:12.3]} 27. Nd2 {[%clk 0:01:39.9]} 27... Re8 {[%clk 0:01:10.7]} 28.
Re1 {[%clk 0:01:39]} 28... fxg3 {[%clk 0:01:04.8]} 29. hxg3 {[%clk 0:01:37.2]}
29... g4 {[%clk 0:01:05.2]} 30. Qb3 {[%clk 0:01:30.2]} 30... Qf5 {[%clk
0:01:01.1]} 31. Ne4 {[%clk 0:01:25.7]} 31... Rf8 {[%clk 0:00:57.4]} 32. Rf1
{[%clk 0:01:25]} 32... Kh7 {[%clk 0:00:41.1]} 33. Nd6 {[%clk 0:01:04]} 33... Qe6
{[%clk 0:00:40]} 34. Nxb7 {[%clk 0:01:02.9]} 34... Rb8 {[%clk 0:00:40.3]} 35.
Nc5 {[%clk 0:00:56.6]} 35... Qb6 {[%clk 0:00:40.2]} 36. Qxd5 {[%clk 0:00:50.4]}
36... Qxb5 {[%clk 0:00:37.7]} 37. Qe4+ {[%clk 0:00:49.1]} 37... Kh8 {[%clk
0:00:38.1]} 38. Ne6 {[%clk 0:00:49]} 38... Re8 {[%clk 0:00:35.5]} 39. Qxg4
{[%clk 0:00:47.9]} 39... Qd7 {[%clk 0:00:20.6]} 40. Qxg7+ {[%clk 0:00:46.5]}
40... Qxg7 {[%clk 0:00:21.5]} 41. Nxg7 {[%clk 0:00:47.2]} 41... Kxg7 {[%clk
0:00:22.4]} 42. Re1 {[%clk 0:00:47]} 42... Kg6 {[%clk 0:00:22.9]} 43. Kg2 {[%clk
0:00:47.1]} 43... Kg5 {[%clk 0:00:23]} 44. Kf1 {[%clk 0:00:42.1]} 44... Kg4
{[%clk 0:00:22.7]} 45. Ra1 {[%clk 0:00:38.9]} 45... Rc8 {[%clk 0:00:22.2]} 46.
Kg2 {[%clk 0:00:21.5]} 46... Rc2 {[%clk 0:00:20.7]} 47. f3+ {[%clk 0:00:21.5]}
47... Kf5 {[%clk 0:00:20.9]} 48. Kf2 {[%clk 0:00:21.7]} 48... Ke5 {[%clk
0:00:20.6]} 49. Ra6 {[%clk 0:00:20.8]} 49... h5 {[%clk 0:00:17.9]} 50. Ra5+
{[%clk 0:00:20.5]} 50... Ke6 {[%clk 0:00:18.8]} 51. Rxh5 {[%clk 0:00:20.3]}
51... Rc8 {[%clk 0:00:19.7]} 52. Rh4 {[%clk 0:00:20.3]} 52... Kd5 {[%clk
0:00:20.2]} 53. Re4 {[%clk 0:00:20.4]} 53... Rh8 {[%clk 0:00:20.6]} 54. g4
{[%clk 0:00:20.1]} 54... Rh2+ {[%clk 0:00:21.2]} 55. Kg3 {[%clk 0:00:20.3]}
55... Rh1 {[%clk 0:00:21.7]} 56. g5 {[%clk 0:00:20.4]} 56... Rg1+ {[%clk
0:00:22.2]} 57. Kf4 {[%clk 0:00:20.5]} 57... Rh1 {[%clk 0:00:22.8]} 58. Kf5
{[%clk 0:00:20.5]} 58... Rh8 {[%clk 0:00:23.2]} 59. g6 {[%clk 0:00:20.3]} 59...
Rf8+ {[%clk 0:00:23.3]} 60. Kg5 {[%clk 0:00:20.4]} 60... Rg8 {[%clk 0:00:23.4]}
61. Kf6 {[%clk 0:00:20.6]} 61... Rf8+ {[%clk 0:00:23.9]} 62. Kg7 {[%clk
0:00:20.8]} 1-0

[Event "*** SCC Grand Prix: Titled Tuesday Blitz"]
[Site "Chess.com"]
[Date "2020.07.07"]
[Round "7"]
[White "Susal_De_Silva"]
[Black "AlexOstrovskiy"]
[Result "0-1"]
[WhiteElo "2352"]
[BlackElo "2642"]
[TimeControl "180+1"]
[EndTime "11:20:05 PDT"]
[Termination "AlexOstrovskiy won by resignation"]

1. e4 {[%clk 0:03:00.9]} 1... c6 {[%clk 0:03:00.1]} 2. d4 {[%clk 0:03:00.3]}
2... d5 {[%clk 0:03:01]} 3. Nc3 {[%clk 0:03:01]} 3... dxe4 {[%clk 0:03:00.5]} 4.
Nxe4 {[%clk 0:03:01.7]} 4... Nf6 {[%clk 0:03:01.1]} 5. Nxf6+ {[%clk 0:03:01.8]}
5... exf6 {[%clk 0:03:02]} 6. c3 {[%clk 0:03:02.2]} 6... Bd6 {[%clk 0:03:02]} 7.
Bd3 {[%clk 0:03:02.6]} 7... O-O {[%clk 0:03:02.9]} 8. Ne2 {[%clk 0:03:02.7]}
8... Re8 {[%clk 0:03:03.8]} 9. Qc2 {[%clk 0:03:02.9]} 9... h5 {[%clk 0:03:00.6]}
10. Be3 {[%clk 0:03:02.3]} 10... Nd7 {[%clk 0:02:58.9]} 11. O-O-O {[%clk
0:03:02.2]} 11... Nf8 {[%clk 0:02:58.9]} 12. h3 {[%clk 0:03:02.5]} 12... Be6
{[%clk 0:02:58.5]} 13. b3 {[%clk 0:03:00.8]} 13... b5 {[%clk 0:02:56]} 14. g4
{[%clk 0:02:59.3]} 14... h4 {[%clk 0:02:55.1]} 15. Rhg1 {[%clk 0:02:54.7]} 15...
Bd5 {[%clk 0:02:54.6]} 16. Nf4 {[%clk 0:02:34.4]} 16... Bxf4 {[%clk 0:02:45.6]}
17. Bxf4 {[%clk 0:02:33.7]} 17... Ne6 {[%clk 0:02:34.7]} 18. Be3 {[%clk
0:02:17.1]} 18... a5 {[%clk 0:02:26.9]} 19. f4 {[%clk 0:02:07]} 19... a4 {[%clk
0:02:23.2]} 20. b4 {[%clk 0:02:04.1]} 20... Qd6 {[%clk 0:01:57.1]} 21. Qf2
{[%clk 0:01:52.8]} 21... Re7 {[%clk 0:01:44.8]} 22. Qxh4 {[%clk 0:01:45.6]}
22... Nf8 {[%clk 0:01:40.5]} 23. Bd2 {[%clk 0:01:31.7]} 23... Bxa2 {[%clk
0:01:40.5]} 24. g5 {[%clk 0:01:32.1]} 24... f5 {[%clk 0:01:33.3]} 25. Bxf5
{[%clk 0:01:04.6]} 25... Qd5 {[%clk 0:01:27.1]} 26. Bc2 {[%clk 0:00:55.3]} 26...
Bb3 {[%clk 0:01:12.3]} 27. g6 {[%clk 0:00:50.3]} 27... f6 {[%clk 0:01:10.8]} 28.
Rde1 {[%clk 0:00:26.3]} 28... Rxe1+ {[%clk 0:01:05.8]} 29. Qxe1 {[%clk
0:00:25.4]} 29... Bxc2 {[%clk 0:01:03.6]} 30. Kxc2 {[%clk 0:00:25.4]} 30... a3
{[%clk 0:01:02.6]} 31. Qe7 {[%clk 0:00:22.5]} 31... Qa2+ {[%clk 0:00:46.3]} 32.
Kd3 {[%clk 0:00:20.9]} 32... Qc4+ {[%clk 0:00:44.1]} 33. Kc2 {[%clk 0:00:21.1]}
33... a2 {[%clk 0:00:40.2]} 34. Qf7+ {[%clk 0:00:08.1]} 34... Qxf7 {[%clk
0:00:40.1]} 35. gxf7+ {[%clk 0:00:08.8]} 35... Kxf7 {[%clk 0:00:41]} 36. Ra1
{[%clk 0:00:09]} 36... Ke6 {[%clk 0:00:25.2]} 37. Kb2 {[%clk 0:00:09]} 37... Kf5
{[%clk 0:00:14.8]} 38. Rxa2 {[%clk 0:00:09.3]} 38... Rxa2+ {[%clk 0:00:15.7]}
39. Kxa2 {[%clk 0:00:09.8]} 39... Ng6 {[%clk 0:00:16.3]} 40. Kb3 {[%clk
0:00:09.9]} 40... Nxf4 {[%clk 0:00:16.4]} 41. Bxf4 {[%clk 0:00:08.7]} 41... Kxf4
{[%clk 0:00:17.3]} 42. c4 {[%clk 0:00:09.3]} 42... Ke4 {[%clk 0:00:15.8]} 43. d5
{[%clk 0:00:03.3]} 43... bxc4+ {[%clk 0:00:16]} 44. Kxc4 {[%clk 0:00:03.4]}
44... cxd5+ {[%clk 0:00:16.6]} 45. Kc5 {[%clk 0:00:03.8]} 45... d4 {[%clk
0:00:17.1]} 46. b5 {[%clk 0:00:04.4]} 46... d3 {[%clk 0:00:17.7]} 47. b6 {[%clk
0:00:05.1]} 47... d2 {[%clk 0:00:18.3]} 48. b7 {[%clk 0:00:05.8]} 48... d1=Q
{[%clk 0:00:18.9]} 49. b8=Q {[%clk 0:00:06.6]} 49... Qd4+ {[%clk 0:00:12.3]} 50.
Kc6 {[%clk 0:00:06.4]} 50... Qd5+ {[%clk 0:00:12.3]} 51. Kc7 {[%clk 0:00:05.5]}
51... Qe5+ {[%clk 0:00:12.3]} 0-1

[Event "*** SCC Grand Prix: Titled Tuesday Blitz"]
[Site "Chess.com"]
[Date "2020.07.07"]
[Round "7"]
[White "Matveev_Vladimir"]
[Black "124chess"]
[Result "0-1"]
[WhiteElo "2544"]
[BlackElo "2700"]
[TimeControl "180+1"]
[EndTime "11:20:07 PDT"]
[Termination "124chess won on time"]

1. d4 {[%clk 0:03:00.5]} 1... Nf6 {[%clk 0:02:59.5]} 2. c4 {[%clk 0:03:01]} 2...
e6 {[%clk 0:03:00.4]} 3. Nf3 {[%clk 0:03:01]} 3... d5 {[%clk 0:03:00.3]} 4. g3
{[%clk 0:03:01.2]} 4... a6 {[%clk 0:02:59.9]} 5. Nbd2 {[%clk 0:02:53.6]} 5... c5
{[%clk 0:02:57.2]} 6. cxd5 {[%clk 0:02:49.3]} 6... exd5 {[%clk 0:02:58.1]} 7.
Bg2 {[%clk 0:02:49.7]} 7... Nc6 {[%clk 0:02:58.4]} 8. O-O {[%clk 0:02:47.7]}
8... Be6 {[%clk 0:02:54.7]} 9. dxc5 {[%clk 0:02:45.7]} 9... Bxc5 {[%clk
0:02:54.4]} 10. Nb3 {[%clk 0:02:46.2]} 10... Ba7 {[%clk 0:02:54.2]} 11. Bf4
{[%clk 0:02:40.9]} 11... O-O {[%clk 0:02:54]} 12. Rc1 {[%clk 0:02:40.8]} 12...
Bg4 {[%clk 0:02:48.6]} 13. h3 {[%clk 0:02:35.1]} 13... Bh5 {[%clk 0:02:48.4]}
14. g4 {[%clk 0:02:10.5]} 14... Bg6 {[%clk 0:02:48.1]} 15. Ne5 {[%clk
0:02:10.7]} 15... Rc8 {[%clk 0:02:11.2]} 16. Nxg6 {[%clk 0:01:28.2]} 16... hxg6
{[%clk 0:02:10.8]} 17. Bg5 {[%clk 0:01:28.8]} 17... Bb8 {[%clk 0:02:08.1]} 18.
Nc5 {[%clk 0:01:11.3]} 18... Qd6 {[%clk 0:02:04.2]} 19. Re1 {[%clk 0:01:11.2]}
19... Qh2+ {[%clk 0:01:28.6]} 20. Kf1 {[%clk 0:01:11.2]} 20... Ne4 {[%clk
0:01:24.2]} 21. Nxe4 {[%clk 0:01:00.1]} 21... dxe4 {[%clk 0:01:25.1]} 22. Qd5
{[%clk 0:00:37.1]} 22... Rfe8 {[%clk 0:01:24.1]} 23. Rc3 {[%clk 0:00:24.8]}
23... Re5 {[%clk 0:01:01.2]} 24. Qd7 {[%clk 0:00:22.9]} 24... Rc7 {[%clk
0:01:00.1]} 25. Qd2 {[%clk 0:00:18.7]} 25... Rxg5 {[%clk 0:00:36.3]} 26. Qxg5
{[%clk 0:00:19.6]} 26... Rc8 {[%clk 0:00:31.6]} 27. Bxe4 {[%clk 0:00:16.6]}
27... Be5 {[%clk 0:00:27.4]} 28. Rd3 {[%clk 0:00:14.5]} 28... Bf6 {[%clk
0:00:24.5]} 29. Qe3 {[%clk 0:00:12.9]} 29... Ne5 {[%clk 0:00:23.3]} 30. Qg3
{[%clk 0:00:12.7]} 30... Qxg3 {[%clk 0:00:19.9]} 31. Rxg3 {[%clk 0:00:13.6]}
31... Nc4 {[%clk 0:00:20.5]} 32. Rc1 {[%clk 0:00:10.4]} 32... Nd2+ {[%clk
0:00:20.4]} 33. Kg2 {[%clk 0:00:09.6]} 33... Rxc1 {[%clk 0:00:19.9]} 34. Bxb7
{[%clk 0:00:10.1]} 34... a5 {[%clk 0:00:16.9]} 35. Bd5 {[%clk 0:00:09.4]} 35...
Rc5 {[%clk 0:00:15.9]} 36. e4 {[%clk 0:00:08.8]} 36... Bxb2 {[%clk 0:00:14.5]}
37. Rd3 {[%clk 0:00:08.3]} 37... Bc3 {[%clk 0:00:12.8]} 38. f4 {[%clk
0:00:07.6]} 38... a4 {[%clk 0:00:12.6]} 39. e5 {[%clk 0:00:07.4]} 39... Kf8
{[%clk 0:00:13]} 40. Kf2 {[%clk 0:00:07.1]} 40... a3 {[%clk 0:00:12.6]} 41. Ke3
{[%clk 0:00:07.5]} 41... Ke7 {[%clk 0:00:11.9]} 42. f5 {[%clk 0:00:03.2]} 42...
gxf5 {[%clk 0:00:11.7]} 43. gxf5 {[%clk 0:00:04.1]} 43... Nf1+ {[%clk
0:00:12.3]} 44. Kf4 {[%clk 0:00:04.3]} 44... Bd2+ {[%clk 0:00:09.3]} 45. Kf3
{[%clk 0:00:03.3]} 45... Ne3 {[%clk 0:00:09.6]} 46. Be4 {[%clk 0:00:03.6]} 46...
Bc1 {[%clk 0:00:09.6]} 47. Rb3 {[%clk 0:00:01.2]} 47... Rxe5 {[%clk 0:00:09.5]}
48. Kf4 {[%clk 0:00:01.2]} 48... Nc4+ {[%clk 0:00:08.2]} 0-1